Cogmind - Beta 14 @@@ ROGUE MODE // 2024.08.17 @ 18:28:15 Player: opdo Result: Destroyed by NM-5TC(R) with Subdweller Machine Gun Performance ------------- Evolutions (0) 0 Regions Visited (2) 400 Robots Destroyed (16) 80 Value Destroyed (514) 514 Prototype IDs (0) 0 Alien Tech Used (0) 0 Bonus (0) 0 TOTAL SCORE: 994 Bonus ------- None Cogmind --------- Core Integrity 0/250 Matter 288/300 Energy 96/100 System Corruption 7% Temperature Cool (2) Movement Treading (160) Location -10/Subcaves Parts ------- > --- POWER (1) -------- (None) > --- PROPULSION (2) --- Light Treads Light Treads > --- UTILITY (2) ------ Small Storage Unit Subdweller Optics > --- WEAPON (2) ------- (None) > --- INVENTORY (8) ---- Wheel Subdweller Monowheel Seismic Detector Scrap Shield Subdweller Laser Slug Cannon Peak State ------------ > --- POWER ------------ Ion Engine > --- PROPULSION ------- Light Treads Light Treads > --- UTILITY ---------- Small Storage Unit Subdweller Optics > --- WEAPON ----------- Subdweller Laser Assault Rifle > --- INVENTORY -------- Ion Engine Wheel Subdweller Monowheel Seismic Detector Subdweller Laser Slug Cannon [Rating: 10] Favorites ----------- Power Ion Engine Engine Ion Engine Propulsion Aluminum Leg Treads Light Treads Leg Aluminum Leg Utility Small Storage Unit Device Improved Terrain Scanner Storage Small Storage Unit Weapon EM Pulse Gun Energy Gun EM Pulse Gun Ballistic Gun Assault Rifle Build | -11 -10 -10 ------- Run | Yrd Mat Sub Slots Evolved . | . . . Power . | . . . Propulsion . | . . . Utility . | . . . Weapon . | . . . Parts Attached 18 | 7 . 11 Power 4 | 1 . 3 Engine 4 | 1 . 3 Core . | . . . Reactor . | . . . Propulsion 4 | 2 . 2 Treads 2 | . . 2 Leg 2 | 2 . . Wheel . | . . . Hover . | . . . Flight . | . . . Utility 3 | 2 . 1 Device 2 | 1 . 1 Storage 1 | 1 . . Processor . | . . . Hackware . | . . . Protection . | . . . Artifact . | . . . Weapon 7 | 2 . 5 Energy Gun 5 | 2 . 3 Energy Cannon . | . . . Ballistic Gun 2 | . . 2 Ballistic Cannon . | . . . Launcher . | . . . Special Weapon . | . . . Impact Weapon . | . . . Slashing Weapon . | . . . Piercing Weapon . | . . . Special Melee Weapon . | . . . Unidentified Prototypes . | . . . Corrupted Parts 1 | . . 1 System Corruption 6 | . . 6 Parts Lost 9 | . . 9 Power 3 | . . 3 Propulsion 2 | . . 2 Utility 1 | . . 1 Weapon 3 | . . 3 Highest Loss Streak 5 | . . 5 To Critical Strikes 1 | . . 1 Average Slot Usage (%) 93 | . 100 88 Engine 13 | . 14 12 Treads 10 | . . 19 Leg 14 | . 28 2 Device 12 | . 14 12 Storage 14 | . 14 14 Energy Gun 20 | . 28 13 Ballistic Gun 6 | . . 11 Peak Build Rating 10 | 9 9 10 Average Rating 8 | 5 9 8 On Entrance 6 | . 9 9 Naked Turns . | . . . Heaviest Build 18 | 15 15 18 Greatest Support 40 | 20 20 40 Greatest Overweight (x) 5 | 2 . 5 Average Overweight (x) . | . . . Largest Inventory Capacity 8 | 8 8 8 Average Capacity 7 | 7 8 8 Most Carried 8 | 6 6 8 Average Carried 5 | 2 6 6 Final Capacity 8 | 8 8 8 Final Carried 7 | 6 6 7 Class Distribution -------------------- 100% | Mutant Dominant Class ---------------- Mutant | -10/Materials Mutant | -10/Subcaves Resources | -11 -10 -10 ----------- Run | Yrd Mat Sub Matter Collected 442 | 54 224 164 Remotely . | . . . Salvage Created 656 | 21 340 295 Parts 55 | 3 27 25 Haulers Intercepted . | . . . Recyclers Shooed . | . . . Parts Field Recycled . | . . . Retrieved Matter . | . . . Parts Self-Destructed 4 | . . 4 Prevented . | . . . Kills | -11 -10 -10 ------- Run | Yrd Mat Sub Combat Hostiles Destroyed 12 | . 6 6 Guns 12 | . 6 6 Classes Destroyed 5 | 1 2 2 Tunneler 1 | 1 . . Watcher 3 | . 3 . Grunt 6 | . 6 . Sentry 1 | . . 1 Subdweller 5 | . . 5 Best Kill Streak 3 | 1 3 3 Combat Bots Only 3 | . 3 3 Max Kills in Single Turn 1 | 1 1 1 Gunslinging . | . . . Exploded . | . . . Melee . | . . . Uniques/NPCs Destroyed . | . . . Combat | -11 -10 -10 -------- Run | Yrd Mat Sub Hostile Shots Fired 89 | . 22 67 Missed 35 | . 11 24 Damage Taken 1150 | . 138 1012 Core 265 | . 24 241 Absorbed by Shields . | . . . Core Remaining (%) 100 | 100 . . Volleys Fired 51 | 2 22 27 Largest 2 | 2 2 2 Hottest 80 | 80 80 80 Shots Fired 92 | 4 44 44 Gun 92 | 4 44 44 Cannon . | . . . Launcher . | . . . Special . | . . . Kinetic 17 | . . 17 Thermal 10 | . . 10 Explosive . | . . . Electromagnetic 65 | 4 44 17 Robot Hit Streak 12 | 1 7 12 Robot Miss Streak 4 | 1 4 2 Penetration Max . | . . . Secondary Targets 3 | . 2 1 Max Gunslinging Chain 1 | . 1 1 Shots Hit Robots 56 | 2 26 28 Core Hits 27 | 1 13 13 Critical Kills . | . . . Critical Parts Destroyed . | . . . Critical Strikes 1 | . 1 . Corrupt 1 | . 1 . Melee Attacks . | . . . Impact . | . . . Slashing . | . . . Piercing . | . . . Sneak Attacks . | . . . Combat Hostiles . | . . . Follow-up Attacks . | . . . Damage Inflicted 788 | 38 360 390 Guns 788 | 38 360 390 Cannons . | . . . Explosions . | . . . Melee . | . . . Ramming . | . . . Kinetic 150 | . . 150 Thermal 144 | . . 144 Explosive . | . . . Electromagnetic 494 | 38 360 96 Impact . | . . . Slashing . | . . . Piercing . | . . . Highest Corruption 7 | . 1 7 Average Corruption 4 | . 1 6 Corruption Purged . | . . . Corruption Blocked . | . . . Effects 14 | . 1 13 Message Errors 2 | . . 2 Matter Fused 5 | . 1 4 Energy Discharges 1 | . . 1 Parts Rejected 1 | . . 1 Data Loss (minor) 1 | . . 1 Data Loss (major) 1 | . . 1 Misfires 1 | . . 1 Alerts 1 | . . 1 Weapon Failures 1 | . . 1 Overload Shots . | . . . Overflow Damage . | . . . Projectiles . | . . . Explosions . | . . . Melee . | . . . Knockbacks . | . . . Impact . | . . . Kinetic . | . . . Secondary . | . . . Self-Inflicted Damage . | . . . Shots . | . . . Rammed . | . . . Targets Rammed . | . . . Kicked . | . . . Crushed . | . . . Highest Temperature 162 | 36 162 . Average Temperature 47 | 20 49 . Received Heat Transfer 258 | . 66 192 Siege Activations . | . . . Robots Corrupted . | . . . Combat Hostiles . | . . . Parts Fried 1 | . 1 . Impact Corruptions . | . . . Robots Melted . | . . . Combat Hostiles . | . . . Parts Melted . | . . . Heat Transferred 175 | . . 175 Parts Sabotaged . | . . . Parts Stolen . | . . . Parts Stripped . | . . . Power Chain Reactions . | . . . Alert | -11 -10 -10 ------- Run | Yrd Mat Sub Peak Influence 252 | 5 252 . Initial 3 | . 3 . Average 96 | . 110 . Maximum Alert Level 1 | . 1 . Low Security (%) 89 | 100 87 . Level 1 10 | . 12 . Level 2 . | . . . Level 3 . | . . . Level 4 . | . . . Level 5 . | . . . High Security . | . . . Max Security . | . . . Squads Dispatched 2 | . 2 . Investigation 1 | . 1 . Extermination . | . . . Reinforcement 1 | . 1 . Assault . | . . . Garrison . | . . . Intercept . | . . . Searches Triggered . | . . . Construction Impeded . | . . . Haulers Reinforced . | . . . Active Scanning Responses . | . . . Cargo Convoy Interrupts . | . . . Stealth | -11 -10 -10 --------- Run | Yrd Mat Sub Distress Signals 1 | . 1 . Communications Jammed . | . . . Distress Signals . | . . . Times Spotted 22 | . 12 10 Peak Tracking Total 4 | . 3 4 Tactical Retreats . | . . . Traps | -11 -10 -10 ------- Run | Yrd Mat Sub Traps Triggered 2 | . 2 . Indirectly . | . . . Trap Hack Attempts . | . . . Triggered . | . . . Disarmed . | . . . Reprogrammed . | . . . Reused . | . . . Traps Extracted . | . . . Installed . | . . . Triggered . | . . . Machines | -11 -10 -10 ---------- Run | Yrd Mat Sub Machines Disabled 1 | . 1 . Max in Single Turn 1 | . 1 . Machines Repaired . | . . . Machines Dismantled . | . . . Machines Sabotaged . | . . . Overloaded Fab Kills . | . . . Hacking | -11 -10 -10 --------- Run | Yrd Mat Sub Machines Accessed 2 | . 2 . Terminals 2 | . 2 . Fabricators . | . . . Repair Stations . | . . . Recycling Units . | . . . Scanalyzers . | . . . Garrison Access . | . . . Total Hacks 5 | . 5 . Successful 2 | . 2 . Failed 3 | . 3 . Catastrophic 1 | . 1 . Database Lockouts . | . . . Manual 8 | . 8 . Terminals 5 | . 5 . Fabricators . | . . . Repair Stations . | . . . Recycling Units . | . . . Scanalyzers . | . . . Garrison Access . | . . . Terminal Hacks 1 | . 1 . Robot Analysis 1 | . 1 . Fabricator Hacks . | . . . Repair Station Hacks . | . . . Recycling Unit Hacks . | . . . Scanalyzer . | . . . Garrison Access Hacks . | . . . Unauthorized Hacks 1 | . 1 . Terminals 1 | . 1 . Botnet 1 | . 1 . Fabricators . | . . . Repair Stations . | . . . Recycling Units . | . . . Scanalyzers . | . . . Garrison Access . | . . . Data Cores Recovered . | . . . Used . | . . . Hacking Detections 2 | . 2 . Full Trace Events . | . . . Feedback Events . | . . . Feedback Blocked . | . . . Robot Schematics Acquired . | . . . Robots Built . | . . . Authchips . | . . . Time . | . . . Total Robot Build Rating . | . . . Part Schematics Acquired . | . . . Parts Built . | . . . Authchips . | . . . Time . | . . . Total Part Build Rating . | . . . Parts Repaired . | . . . Time . | . . . Parts Recycled . | . . . Recycled Matter . | . . . Retrieved Matter . | . . . Retrieved Components . | . . . Parts Scanalyzed . | . . . Part Schematics Acquired . | . . . Parts Damaged . | . . . Bothacking | -11 -10 -10 ------------ Run | Yrd Mat Sub Used RIF Installer . | . . . Robots Hacked . | . . . Non-combat . | . . . Combat . | . . . Robot Hacks Applied . | . . . Relay Couplers Released . | . . . Fabnet Peak Effective % . | . . . Robots Rewired . | . . . Allies Hacked . | . . . Hacks Repelled . | . . . Allies | -11 -10 -10 -------- Run | Yrd Mat Sub Total Allies . | . . . Largest Group . | . . . Highest-Rated Group . | . . . Highest-Rated Ally . | . . . Total Orders . | . . . Ally Attacks . | . . . Total Damage . | . . . Kills . | . . . Allies Corrupted . | . . . Allies Melted . | . . . Intel | -11 -10 -10 ------- Run | Yrd Mat Sub Robot Analysis Total 1 | . 1 . Derelict Logs Recovered 1 | . . 1 Drone Launches . | . . . Drone Recoveries . | . . . Exploration | -11 -10 -10 ------------- Run | Yrd Mat Sub Turns Passed 1028 | 65 441 522 Spaces Moved 591 | 34 310 247 Core 28 | 4 . 24 Treads 210 | . . 210 Legs 353 | 30 310 13 Wheels . | . . . Hover . | . . . Flight . | . . . Fastest Speed 50 | 50 120 120 Average Speed 141 | 128 120 171 Slowest Speed 300 | 190 120 300 Overloaded Moves . | . . . Propulsion Burnouts . | . . . Robots Hopped . | . . . Cave-ins Triggered . | . . . Exploration Rate (%) 25 | 4 46 26 Regions Visited 2 Branch Regions 1 Pre-discovered Areas . | . . . Known Exits Taken . | . . . Unknown Exits Taken 2 | 1 1 . Scrap Searched 2 | . . 2 Spaces Dug . | . . . Terrain Destroyed . | . . . Melee . | . . . Projectile . | . . . AOE . | . . . Terrain Rammed . | . . . Walls Destroyed . | . . . Machines Disabled . | . . . Actions | -11 -10 -10 --------- Run | Yrd Mat Sub Total 684 | 48 335 301 Wait 14 | . 4 10 Move 589 | 33 309 247 Hop . | . . . Pick Up 10 | 6 . 4 Fast Attach 10 | 7 . 3 Attach 5 | . . 5 Detach . | . . . Swap 3 | . . 3 Drop 2 | . . 2 Fire 51 | 2 22 27 Melee . | . . . Ram . | . . . Kick . | . . . Crush . | . . . Escape Stasis . | . . . Rewire . | . . . Trap . | . . . Miscellaneous . | . . . Route ------- -11/Scrapyard -10/Materials (discovered 2 exits: [*Mat] / [*Sub]) -10/Subcaves (discovered 1 exit: [*Mat]) History --------- Turn | Location | Event 35 | -11/Scrapyard | Discovered new exit (range 15) 66 | -11/Scrapyard | Entered Materials 200 | -10/Materials | Discovered new exit (range 11) 312 | -10/Materials | Build established: Mutant 498 | -10/Materials | Discovered new exit (range 9) 507 | -10/Materials | Entered Subcaves 600 | -10/Subcaves | Lost 5 parts (2n1u2w) 700 | -10/Subcaves | Discovered new exit (range 10) 852 | -10/Subcaves | Learned Materials emergency access door positions 975 | -10/Subcaves | Core integrity fell below 50% 993 | -10/Subcaves | Ambushed by Subdweller buried in earth 993 | -10/Subcaves | Ambushed by Subdweller buried in earth 1002 | -10/Subcaves | Core integrity fell below 20% 1029 | -10/Subcaves | Destroyed by NM-5TC(R) with Subdweller Machine Gun Last Messages --------------- 00969_ 6J